[Event "Early-Titled-Tuesday-Blitz-May-14-2024"]
[Site "Chess.com"]
[Date "2024.05.14"]
[Round "9"]
[White "alvarorodriguezavila"]
[Black "A4RookA3"]
[Result "1-0"]
[WhiteElo "2321"]
[BlackElo "2412"]
[TimeControl "180+1"]
[EndTime "9:47:31 PDT"]
[Termination "alvarorodriguezavila won by checkmate"]

1. e4 {[%clk 0:03:00.9]} 1... c6 {[%clk 0:02:59.8]} 2. Nc3 {[%clk 0:02:59.7]}
2... d5 {[%clk 0:03:00.7]} 3. Nf3 {[%clk 0:02:59.9]} 3... Bg4 {[%clk 0:02:59.8]}
4. h3 {[%clk 0:02:55.9]} 4... Bxf3 {[%clk 0:02:57.7]} 5. Qxf3 {[%clk 0:02:56.8]}
5... e6 {[%clk 0:02:58.3]} 6. g3 {[%clk 0:02:51.3]} 6... Nd7 {[%clk 0:02:50.3]}
7. Bg2 {[%clk 0:02:51.2]} 7... d4 {[%clk 0:02:41.3]} 8. Nd1 {[%clk 0:02:47.8]}
8... Ne5 {[%clk 0:02:38.2]} 9. Qb3 {[%clk 0:02:48.4]} 9... d3 {[%clk 0:02:28.2]}
10. O-O {[%clk 0:02:48.4]} 10... Bc5 {[%clk 0:02:08.2]} 11. Ne3 {[%clk
0:02:45.7]} 11... Bb6 {[%clk 0:02:06.7]} 12. f4 {[%clk 0:02:38.4]} 12... Bxe3+
{[%clk 0:01:24.6]} 13. dxe3 {[%clk 0:02:35.9]} 13... d2 {[%clk 0:01:25.5]} 14.
fxe5 {[%clk 0:02:29.5]} 14... dxc1=Q {[%clk 0:01:06.8]} 15. Raxc1 {[%clk
0:02:28.7]} 15... Qb6 {[%clk 0:01:07.2]} 16. Qa3 {[%clk 0:02:18.8]} 16... Ne7
{[%clk 0:01:01.7]} 17. h4 {[%clk 0:02:15.9]} 17... c5 {[%clk 0:00:51.9]} 18.
Rcd1 {[%clk 0:02:05.2]} 18... O-O {[%clk 0:00:43.4]} 19. Rd6 {[%clk 0:02:03.3]}
19... Qc7 {[%clk 0:00:40.1]} 20. Rfd1 {[%clk 0:02:01.3]} 20... Rfd8 {[%clk
0:00:37.9]} 21. Rxd8+ {[%clk 0:01:55.7]} 21... Rxd8 {[%clk 0:00:32.3]} 22. Rxd8+
{[%clk 0:01:56.6]} 22... Qxd8 {[%clk 0:00:32.7]} 23. Qxc5 {[%clk 0:01:57.2]}
23... Nc6 {[%clk 0:00:29.6]} 24. Bf1 {[%clk 0:01:39.5]} 24... g6 {[%clk
0:00:17.3]} 25. b4 {[%clk 0:01:26.6]} 25... a6 {[%clk 0:00:14.3]} 26. a4 {[%clk
0:01:26.4]} 26... Qb8 {[%clk 0:00:06.4]} 27. Qd6 {[%clk 0:01:26.2]} 27... Qc8
{[%clk 0:00:04.4]} 28. b5 {[%clk 0:01:24.5]} 28... axb5 {[%clk 0:00:02.7]} 29.
axb5 {[%clk 0:01:25.2]} 29... Na5 {[%clk 0:00:02.9]} 30. Qd4 {[%clk 0:00:50.2]}
30... Qc7 {[%clk 0:00:01.8]} 31. Bd3 {[%clk 0:00:36.5]} 31... b6 {[%clk
0:00:01.6]} 32. Qd6 {[%clk 0:00:37.2]} 32... Qxd6 {[%clk 0:00:00.9]} 33. exd6
{[%clk 0:00:37.4]} 33... Nb7 {[%clk 0:00:01.8]} 34. e5 {[%clk 0:00:37.4]} 34...
Kf8 {[%clk 0:00:01.9]} 35. Kf2 {[%clk 0:00:26.3]} 35... Nc5 {[%clk 0:00:01]} 36.
Kf3 {[%clk 0:00:25.4]} 36... Ke8 {[%clk 0:00:00.8]} 37. Kf4 {[%clk 0:00:25.5]}
37... Nd7 {[%clk 0:00:01.4]} 38. Be4 {[%clk 0:00:24.1]} 38... f6 {[%clk
0:00:01.9]} 39. Bc6 {[%clk 0:00:24.1]} 39... fxe5+ {[%clk 0:00:02.4]} 40. Ke4
{[%clk 0:00:24.2]} 40... Kd8 {[%clk 0:00:03.3]} 41. Bxd7 {[%clk 0:00:24.8]}
41... Kxd7 {[%clk 0:00:04.2]} 42. Kxe5 {[%clk 0:00:25.6]} 42... h6 {[%clk
0:00:04.8]} 43. g4 {[%clk 0:00:24.9]} 43... g5 {[%clk 0:00:04.4]} 44. h5 {[%clk
0:00:25.4]} 44... Kd8 {[%clk 0:00:02.9]} 45. Kxe6 {[%clk 0:00:25.4]} 45... Ke8
{[%clk 0:00:03.8]} 46. e4 {[%clk 0:00:25.2]} 46... Kd8 {[%clk 0:00:04]} 47. d7
{[%clk 0:00:25.8]} 47... Kc7 {[%clk 0:00:04.5]} 48. Ke7 {[%clk 0:00:24.8]} 48...
Kb7 {[%clk 0:00:05.4]} 49. d8=Q {[%clk 0:00:24.4]} 49... Ka7 {[%clk 0:00:06.3]}
50. Qc7+ {[%clk 0:00:22.5]} 50... Ka8 {[%clk 0:00:07.2]} 51. Qc3 {[%clk
0:00:21]} 51... Kb8 {[%clk 0:00:08.1]} 52. Kd7 {[%clk 0:00:20.8]} 52... Kb7
{[%clk 0:00:08.5]} 53. e5 {[%clk 0:00:16.8]} 53... Ka8 {[%clk 0:00:09.4]} 54. e6
{[%clk 0:00:16.7]} 54... Kb8 {[%clk 0:00:10.1]} 55. e7 {[%clk 0:00:16.8]} 55...
Ka7 {[%clk 0:00:08.9]} 56. Qc7+ {[%clk 0:00:16.9]} 56... Ka8 {[%clk 0:00:09.1]}
57. e8=Q# {[%clk 0:00:17.8]} 1-0

[Event "Early-Titled-Tuesday-Blitz-May-14-2024"]
[Site "Chess.com"]
[Date "2024.05.14"]
[Round "9"]
[White "DishonorOnYourCow"]
[Black "Alphafischer2019"]
[Result "0-1"]
[WhiteElo "2530"]
[BlackElo "2657"]
[TimeControl "180+1"]
[EndTime "9:47:35 PDT"]
[Termination "Alphafischer2019 won by resignation"]

1. d4 {[%clk 0:03:00.9]} 1... Nf6 {[%clk 0:03:00.4]} 2. c4 {[%clk 0:03:01.3]}
2... b6 {[%clk 0:02:59]} 3. Nc3 {[%clk 0:03:00.6]} 3... Bb7 {[%clk 0:02:58.9]}
4. Nf3 {[%clk 0:03:01.2]} 4... e6 {[%clk 0:02:56.3]} 5. g3 {[%clk 0:03:00.8]}
5... Bb4 {[%clk 0:02:53.6]} 6. Bg2 {[%clk 0:02:58.8]} 6... O-O {[%clk
0:02:50.4]} 7. O-O {[%clk 0:02:59]} 7... Bxc3 {[%clk 0:02:47.4]} 8. bxc3 {[%clk
0:02:58.8]} 8... d6 {[%clk 0:02:48.2]} 9. Re1 {[%clk 0:02:55.9]} 9... Nc6 {[%clk
0:02:36.8]} 10. e4 {[%clk 0:02:55]} 10... e5 {[%clk 0:02:33.2]} 11. c5 {[%clk
0:02:35.5]} 11... bxc5 {[%clk 0:02:25.7]} 12. dxe5 {[%clk 0:02:34.8]} 12... dxe5
{[%clk 0:02:24.9]} 13. Ba3 {[%clk 0:02:26.4]} 13... Qxd1 {[%clk 0:02:00.5]} 14.
Raxd1 {[%clk 0:02:25.5]} 14... Rfd8 {[%clk 0:02:01]} 15. Rxd8+ {[%clk
0:02:18.8]} 15... Rxd8 {[%clk 0:02:01.9]} 16. Bxc5 {[%clk 0:02:18.4]} 16... Rd3
{[%clk 0:01:55.5]} 17. Rb1 {[%clk 0:02:17.6]} 17... Rxc3 {[%clk 0:01:48.4]} 18.
Bxa7 {[%clk 0:01:39]} 18... Ba6 {[%clk 0:01:37]} 19. Be3 {[%clk 0:01:30.5]}
19... h6 {[%clk 0:01:32.8]} 20. Nd2 {[%clk 0:01:15.8]} 20... Ng4 {[%clk
0:01:25.2]} 21. Bf1 {[%clk 0:01:05.6]} 21... Bxf1 {[%clk 0:01:12.2]} 22. Nxf1
{[%clk 0:01:06.5]} 22... Nxe3 {[%clk 0:01:12.3]} 23. Nxe3 {[%clk 0:01:06.7]}
23... Nd4 {[%clk 0:01:12.9]} 24. Ra1 {[%clk 0:00:59.6]} 24... Ra3 {[%clk
0:01:09.1]} 25. Nc4 {[%clk 0:00:59.3]} 25... Ra4 {[%clk 0:00:51.9]} 26. Nxe5
{[%clk 0:00:58.5]} 26... Ne2+ {[%clk 0:00:51.8]} 27. Kf1 {[%clk 0:00:53.8]}
27... Nc3 {[%clk 0:00:50.8]} 28. Rc1 {[%clk 0:00:48.6]} 28... Nb5 {[%clk
0:00:29.7]} 29. Rc5 {[%clk 0:00:43.2]} 29... Nd6 {[%clk 0:00:29]} 30. Rxc7
{[%clk 0:00:39.8]} 30... Rxa2 {[%clk 0:00:26.4]} 31. f3 {[%clk 0:00:19.6]} 31...
Rxh2 {[%clk 0:00:19.6]} 32. Rd7 {[%clk 0:00:20]} 32... Nb5 {[%clk 0:00:11.9]}
33. Nxf7 {[%clk 0:00:17]} 33... Nc3 {[%clk 0:00:11.9]} 34. Nd6 {[%clk
0:00:16.1]} 34... Rh1+ {[%clk 0:00:11.1]} 35. Kg2 {[%clk 0:00:16]} 35... Rd1
{[%clk 0:00:11.6]} 36. Rd8+ {[%clk 0:00:15.7]} 36... Kh7 {[%clk 0:00:11.8]} 37.
Nf7 {[%clk 0:00:15.3]} 37... Ra1 {[%clk 0:00:11.5]} 38. Rc8 {[%clk 0:00:13.8]}
38... Ra2+ {[%clk 0:00:11.9]} 39. Kh3 {[%clk 0:00:12.5]} 39... Nd1 {[%clk
0:00:11.7]} 40. g4 {[%clk 0:00:10.3]} 40... Nf2+ {[%clk 0:00:11.5]} 41. Kg3
{[%clk 0:00:10.5]} 41... Nh1+ {[%clk 0:00:10.9]} 42. Kf4 {[%clk 0:00:10.3]}
42... Nf2 {[%clk 0:00:09.7]} 43. Rc7 {[%clk 0:00:08.9]} 43... Nd3+ {[%clk
0:00:10.1]} 44. Ke3 {[%clk 0:00:08.8]} 44... Ra3 {[%clk 0:00:10.1]} 45. Kd4
{[%clk 0:00:07.7]} 45... Nf4 {[%clk 0:00:09.5]} 46. Kc5 {[%clk 0:00:01.6]} 46...
Ne6+ {[%clk 0:00:09.6]} 47. Kd5 {[%clk 0:00:02]} 47... Nxc7+ {[%clk 0:00:08.6]}
0-1

[Event "Early-Titled-Tuesday-Blitz-May-14-2024"]
[Site "Chess.com"]
[Date "2024.05.14"]
[Round "9"]
[White "invisible_s0ul"]
[Black "secrethawk1"]
[Result "1-0"]
[WhiteElo "2337"]
[BlackElo "2422"]
[TimeControl "180+1"]
[EndTime "9:47:38 PDT"]
[Termination "invisible_s0ul won by checkmate"]

1. e4 {[%clk 0:03:00.9]} 1... c5 {[%clk 0:02:58.9]} 2. Ne2 {[%clk 0:02:56.9]}
2... e6 {[%clk 0:02:57.4]} 3. d4 {[%clk 0:02:55.4]} 3... cxd4 {[%clk 0:02:58.3]}
4. Nxd4 {[%clk 0:02:56]} 4... a6 {[%clk 0:02:56.4]} 5. Bd3 {[%clk 0:02:55.1]}
5... Bc5 {[%clk 0:02:54.3]} 6. Nb3 {[%clk 0:02:54.6]} 6... Ba7 {[%clk
0:02:54.4]} 7. c4 {[%clk 0:02:41]} 7... Nc6 {[%clk 0:02:53.5]} 8. Nc3 {[%clk
0:02:40.8]} 8... Nf6 {[%clk 0:02:52.9]} 9. O-O {[%clk 0:02:40.3]} 9... O-O
{[%clk 0:02:52]} 10. Qe2 {[%clk 0:02:22]} 10... d5 {[%clk 0:02:49.5]} 11. cxd5
{[%clk 0:02:15.3]} 11... exd5 {[%clk 0:02:49.1]} 12. e5 {[%clk 0:02:14.6]} 12...
Re8 {[%clk 0:02:44.8]} 13. Bf4 {[%clk 0:02:08.5]} 13... Bb8 {[%clk 0:02:32.1]}
14. Rfe1 {[%clk 0:01:35]} 14... Bxe5 {[%clk 0:02:19.8]} 15. Qd2 {[%clk
0:01:22.5]} 15... Bg4 {[%clk 0:02:07.4]} 16. f3 {[%clk 0:01:13]} 16... Bh5
{[%clk 0:01:57.5]} 17. Rad1 {[%clk 0:01:03.3]} 17... Qb6+ {[%clk 0:01:48.7]} 18.
Kh1 {[%clk 0:01:01.7]} 18... Rad8 {[%clk 0:01:44]} 19. Bb1 {[%clk 0:00:50.1]}
19... d4 {[%clk 0:01:33]} 20. Ne4 {[%clk 0:00:48.8]} 20... Nxe4 {[%clk
0:01:04.4]} 21. Bxe4 {[%clk 0:00:49.5]} 21... Bf6 {[%clk 0:01:03.9]} 22. Qf2
{[%clk 0:00:36.1]} 22... Bg6 {[%clk 0:00:30.6]} 23. Qg3 {[%clk 0:00:34]} 23...
Qb4 {[%clk 0:00:23.4]} 24. Bd2 {[%clk 0:00:28.2]} 24... Qf8 {[%clk 0:00:22.6]}
25. h4 {[%clk 0:00:24.8]} 25... Bxe4 {[%clk 0:00:22.1]} 26. fxe4 {[%clk
0:00:25.6]} 26... d3 {[%clk 0:00:21.4]} 27. Bg5 {[%clk 0:00:23.2]} 27... Ne5
{[%clk 0:00:19.6]} 28. Bxf6 {[%clk 0:00:22.7]} 28... Ng6 {[%clk 0:00:19.6]} 29.
Bxd8 {[%clk 0:00:22.5]} 29... Rxd8 {[%clk 0:00:20.5]} 30. Rxd3 {[%clk
0:00:22.5]} 30... Re8 {[%clk 0:00:16.3]} 31. h5 {[%clk 0:00:20.3]} 31... Ne5
{[%clk 0:00:16.2]} 32. Rd5 {[%clk 0:00:20.9]} 32... Qe7 {[%clk 0:00:14.8]} 33.
Nd4 {[%clk 0:00:19.8]} 33... Qf6 {[%clk 0:00:12.4]} 34. Nf5 {[%clk 0:00:18.8]}
34... g6 {[%clk 0:00:10.6]} 35. Rd6 {[%clk 0:00:17.9]} 35... Qh8 {[%clk
0:00:07.8]} 36. Ne7+ {[%clk 0:00:12.6]} 36... Kf8 {[%clk 0:00:05.8]} 37. Nd5
{[%clk 0:00:10.7]} 37... Qg7 {[%clk 0:00:03.9]} 38. Nf6 {[%clk 0:00:10.9]} 38...
Rc8 {[%clk 0:00:01.8]} 39. Qxe5 {[%clk 0:00:10.1]} 39... Qh6 {[%clk 0:00:01.4]}
40. Nd7+ {[%clk 0:00:09.6]} 40... Kg8 {[%clk 0:00:01.3]} 41. Nf6+ {[%clk
0:00:10.2]} 41... Kf8 {[%clk 0:00:01.4]} 42. Rd7 {[%clk 0:00:08.2]} 42... Re8
{[%clk 0:00:01.1]} 43. Qd6+ {[%clk 0:00:07.1]} 43... Kg7 {[%clk 0:00:01.9]} 44.
Nxe8+ {[%clk 0:00:07.4]} 44... Kg8 {[%clk 0:00:02]} 45. Qe5 {[%clk 0:00:06.9]}
45... Qg5 {[%clk 0:00:01.5]} 46. Qxg5 {[%clk 0:00:06.7]} 46... Kf8 {[%clk
0:00:01.3]} 47. Qh6+ {[%clk 0:00:06.8]} 47... Kxe8 {[%clk 0:00:01.3]} 48. Red1
{[%clk 0:00:07.5]} 48... f5 {[%clk 0:00:01.2]} 49. Qg7 {[%clk 0:00:07.2]} 49...
f4 {[%clk 0:00:00.8]} 50. Qe7# {[%clk 0:00:08.1]} 1-0

[Event "Early-Titled-Tuesday-Blitz-May-14-2024"]
[Site "Chess.com"]
[Date "2024.05.14"]
[Round "9"]
[White "TigrVShlyape"]
[Black "maciek_92"]
[Result "1/2-1/2"]
[WhiteElo "2947"]
[BlackElo "2836"]
[TimeControl "180+1"]
[EndTime "9:47:39 PDT"]
[Termination "Game drawn by repetition"]

1. e4 {[%clk 0:03:00.9]} 1... c5 {[%clk 0:02:59.9]} 2. Nf3 {[%clk 0:03:00.4]}
2... e6 {[%clk 0:03:00.7]} 3. d4 {[%clk 0:02:59.9]} 3... cxd4 {[%clk 0:03:01.6]}
4. Nxd4 {[%clk 0:03:00.2]} 4... Nc6 {[%clk 0:03:02.3]} 5. Nb5 {[%clk 0:02:59.3]}
5... d6 {[%clk 0:03:02.2]} 6. c4 {[%clk 0:02:58.6]} 6... Nf6 {[%clk 0:03:02.8]}
7. N1c3 {[%clk 0:02:58.1]} 7... a6 {[%clk 0:03:02.1]} 8. Nd4 {[%clk 0:02:57.5]}
8... Bd7 {[%clk 0:03:00.6]} 9. Be2 {[%clk 0:02:57]} 9... Be7 {[%clk 0:02:48.4]}
10. O-O {[%clk 0:02:56.8]} 10... O-O {[%clk 0:02:49.2]} 11. Be3 {[%clk
0:02:56.9]} 11... Rc8 {[%clk 0:02:35.3]} 12. Rc1 {[%clk 0:02:55.9]} 12... Nxd4
{[%clk 0:02:32.6]} 13. Qxd4 {[%clk 0:02:54.4]} 13... Qa5 {[%clk 0:02:32.1]} 14.
Rfd1 {[%clk 0:02:25.2]} 14... e5 {[%clk 0:02:08]} 15. Qd2 {[%clk 0:02:15.7]}
15... Qc7 {[%clk 0:01:28.7]} 16. f3 {[%clk 0:02:13.9]} 16... Be6 {[%clk
0:01:28.5]} 17. b3 {[%clk 0:02:05.6]} 17... Qb8 {[%clk 0:01:21.1]} 18. Kh1
{[%clk 0:02:02.9]} 18... h6 {[%clk 0:01:06.9]} 19. a4 {[%clk 0:01:56.5]} 19...
Rfd8 {[%clk 0:01:04.2]} 20. a5 {[%clk 0:01:55.2]} 20... Nh7 {[%clk 0:01:01.5]}
21. Na4 {[%clk 0:01:49.5]} 21... Bg5 {[%clk 0:01:00.2]} 22. Nb6 {[%clk
0:01:48.3]} 22... Rc6 {[%clk 0:00:59.1]} 23. Rc3 {[%clk 0:01:46.8]} 23... f6
{[%clk 0:00:34.3]} 24. b4 {[%clk 0:01:45.6]} 24... Bxe3 {[%clk 0:00:29.9]} 25.
Rxe3 {[%clk 0:01:44.7]} 25... Ng5 {[%clk 0:00:30.5]} 26. c5 {[%clk 0:01:35.5]}
26... Nf7 {[%clk 0:00:30.6]} 27. Rd3 {[%clk 0:01:35.4]} 27... g5 {[%clk
0:00:16.9]} 28. Nd5 {[%clk 0:01:28.1]} 28... Bxd5 {[%clk 0:00:11.3]} 29. exd5
{[%clk 0:01:25.5]} 29... Rc7 {[%clk 0:00:10.4]} 30. Rc3 {[%clk 0:01:24.9]} 30...
Qc8 {[%clk 0:00:07.5]} 31. Qc2 {[%clk 0:01:23.2]} 31... Kg7 {[%clk 0:00:07.6]}
32. Bd3 {[%clk 0:01:20.4]} 32... dxc5 {[%clk 0:00:06.6]} 33. Bf5 {[%clk
0:01:20.5]} 33... Qb8 {[%clk 0:00:04.1]} 34. bxc5 {[%clk 0:01:20.8]} 34... Re7
{[%clk 0:00:04.5]} 35. d6 {[%clk 0:01:18.3]} 35... Ree8 {[%clk 0:00:04.9]} 36.
Rb1 {[%clk 0:01:08.8]} 36... Qa7 {[%clk 0:00:03.8]} 37. Rb6 {[%clk 0:01:06.7]}
37... Rb8 {[%clk 0:00:04]} 38. Qb3 {[%clk 0:01:04.4]} 38... Nd8 {[%clk
0:00:03.9]} 39. Qa4 {[%clk 0:00:54.7]} 39... Rf8 {[%clk 0:00:04.2]} 40. Qg4
{[%clk 0:00:53.8]} 40... Rf7 {[%clk 0:00:01.7]} 41. Qh5 {[%clk 0:00:53.6]} 41...
Nc6 {[%clk 0:00:01.5]} 42. Qg6+ {[%clk 0:00:53.7]} 42... Kf8 {[%clk 0:00:02]}
43. Qxh6+ {[%clk 0:00:54]} 43... Ke8 {[%clk 0:00:01.4]} 44. Bg6 {[%clk
0:00:53.6]} 44... Nd8 {[%clk 0:00:02.3]} 45. Bxf7+ {[%clk 0:00:49.6]} 45... Kxf7
{[%clk 0:00:02.1]} 46. d7 {[%clk 0:00:49.3]} 46... Nc6 {[%clk 0:00:01.4]} 47.
Rxc6 {[%clk 0:00:49.4]} 47... bxc6 {[%clk 0:00:01.5]} 48. Qh7+ {[%clk 0:00:27]}
48... Ke6 {[%clk 0:00:01.7]} 49. Qh3+ {[%clk 0:00:24.9]} 49... Ke7 {[%clk
0:00:01.7]} 50. Qh7+ {[%clk 0:00:23.5]} 50... Ke6 {[%clk 0:00:02]} 51. Qh3+
{[%clk 0:00:11.6]} 51... Ke7 {[%clk 0:00:02.1]} 52. Qh7+ {[%clk 0:00:09.2]}
52... Ke6 {[%clk 0:00:02.2]} 1/2-1/2

[Event "Early-Titled-Tuesday-Blitz-May-14-2024"]
[Site "Chess.com"]
[Date "2024.05.14"]
[Round "9"]
[White "ulises2013"]
[Black "KnightDuta"]
[Result "1-0"]
[WhiteElo "2913"]
[BlackElo "2740"]
[TimeControl "180+1"]
[EndTime "9:47:39 PDT"]
[Termination "ulises2013 won by resignation"]

1. e4 {[%clk 0:03:00.9]} 1... c5 {[%clk 0:02:59.8]} 2. g3 {[%clk 0:03:01]} 2...
Nc6 {[%clk 0:03:00]} 3. Bg2 {[%clk 0:03:01]} 3... g6 {[%clk 0:03:00.9]} 4. Ne2
{[%clk 0:03:01.6]} 4... Bg7 {[%clk 0:03:01.6]} 5. O-O {[%clk 0:03:02.3]} 5... e6
{[%clk 0:03:02.3]} 6. c3 {[%clk 0:03:02.7]} 6... Nge7 {[%clk 0:03:02.8]} 7. d4
{[%clk 0:03:03.3]} 7... cxd4 {[%clk 0:03:03.4]} 8. cxd4 {[%clk 0:03:04.2]} 8...
d5 {[%clk 0:03:04.2]} 9. Nbc3 {[%clk 0:03:05.1]} 9... dxe4 {[%clk 0:02:50.6]}
10. Nxe4 {[%clk 0:03:06]} 10... h6 {[%clk 0:02:50.9]} 11. Be3 {[%clk 0:03:00.8]}
11... O-O {[%clk 0:02:49.9]} 12. Rc1 {[%clk 0:02:59.7]} 12... Nd5 {[%clk
0:02:35.7]} 13. Nc5 {[%clk 0:02:44.5]} 13... Kh7 {[%clk 0:02:26.9]} 14. Qb3
{[%clk 0:02:28.9]} 14... Nce7 {[%clk 0:01:32.1]} 15. Nxb7 {[%clk 0:01:55]} 15...
Bxb7 {[%clk 0:01:33]} 16. Qxb7 {[%clk 0:01:55.7]} 16... Rb8 {[%clk 0:01:30.3]}
17. Qxa7 {[%clk 0:01:55.7]} 17... Rxb2 {[%clk 0:01:30.7]} 18. Nc3 {[%clk
0:01:54.5]} 18... Qa8 {[%clk 0:01:13.2]} 19. Qxa8 {[%clk 0:01:53.5]} 19... Rxa8
{[%clk 0:01:14.1]} 20. Nxd5 {[%clk 0:01:54.1]} 20... Nxd5 {[%clk 0:01:14.1]} 21.
Bxd5 {[%clk 0:01:54]} 21... exd5 {[%clk 0:01:15]} 22. Rc5 {[%clk 0:01:54.5]}
22... Rd8 {[%clk 0:00:56.8]} 23. Ra1 {[%clk 0:01:53.6]} 23... Rb4 {[%clk
0:00:52.3]} 24. a4 {[%clk 0:01:40.8]} 24... Rxd4 {[%clk 0:00:42.4]} 25. Bxd4
{[%clk 0:01:40.6]} 25... Bxd4 {[%clk 0:00:43.3]} 26. Rcc1 {[%clk 0:01:41.2]}
26... Bxa1 {[%clk 0:00:42.5]} 27. Rxa1 {[%clk 0:01:42.1]} 27... Kg7 {[%clk
0:00:35.1]} 28. Kf1 {[%clk 0:01:41.4]} 28... Kf6 {[%clk 0:00:35.1]} 29. Ke2
{[%clk 0:01:41.7]} 29... Ke5 {[%clk 0:00:33.7]} 30. Kd3 {[%clk 0:01:41.2]} 30...
Rb8 {[%clk 0:00:25.8]} 31. a5 {[%clk 0:01:41.1]} 31... Rb3+ {[%clk 0:00:26.3]}
32. Kc2 {[%clk 0:01:40.6]} 32... Rb7 {[%clk 0:00:15.6]} 33. a6 {[%clk
0:01:40.9]} 33... Ra7 {[%clk 0:00:16.2]} 34. Kd3 {[%clk 0:01:41.5]} 34... g5
{[%clk 0:00:15.7]} 35. h3 {[%clk 0:01:39.6]} 35... h5 {[%clk 0:00:15.5]} 36. Ra4
{[%clk 0:01:36.6]} 36... Ke6 {[%clk 0:00:15.2]} 37. Kd4 {[%clk 0:01:36.3]} 37...
Kd6 {[%clk 0:00:15.3]} 38. Ra5 {[%clk 0:01:36.5]} 38... Ke6 {[%clk 0:00:15.6]}
39. f3 {[%clk 0:01:34.5]} 39... f6 {[%clk 0:00:14.2]} 40. g4 {[%clk 0:01:33.8]}
40... h4 {[%clk 0:00:14.3]} 41. Ra1 {[%clk 0:01:33.5]} 41... Kd6 {[%clk
0:00:14.7]} 42. Ra2 {[%clk 0:01:34.1]} 42... Kc6 {[%clk 0:00:15.4]} 43. Ra1
{[%clk 0:01:33.9]} 43... Kd6 {[%clk 0:00:13.4]} 44. Ra4 {[%clk 0:01:32.3]} 44...
Kc6 {[%clk 0:00:13.6]} 45. Ra5 {[%clk 0:01:32.7]} 45... Kb6 {[%clk 0:00:12.1]}
46. Rxd5 {[%clk 0:01:31.1]} 46... Kxa6 {[%clk 0:00:05.2]} 47. Rd6+ {[%clk
0:01:31]} 47... Kb5 {[%clk 0:00:05.4]} 48. Rxf6 {[%clk 0:01:31.6]} 48... Ra1
{[%clk 0:00:03.2]} 49. Rf5+ {[%clk 0:01:30.8]} 49... Kc6 {[%clk 0:00:04]} 50.
Rxg5 {[%clk 0:01:31.3]} 50... Rh1 {[%clk 0:00:04.7]} 51. Rh5 {[%clk 0:01:30.7]}
51... Rxh3 {[%clk 0:00:05.3]} 52. f4 {[%clk 0:01:28.6]} 52... Kd6 {[%clk
0:00:05.7]} 53. Rh6+ {[%clk 0:01:28.5]} 53... Ke7 {[%clk 0:00:06.1]} 54. Ke5
{[%clk 0:01:29.1]} 54... Kf7 {[%clk 0:00:05.6]} 55. Kf5 {[%clk 0:01:23.6]} 55...
Kg7 {[%clk 0:00:05.8]} 56. g5 {[%clk 0:01:22.4]} 56... Rh1 {[%clk 0:00:04.9]}
57. Kg4 {[%clk 0:01:12.2]} 57... Rg1+ {[%clk 0:00:03.8]} 58. Kxh4 {[%clk
0:01:12.6]} 58... Rh1+ {[%clk 0:00:04.1]} 59. Kg4 {[%clk 0:01:13.2]} 59... Rg1+
{[%clk 0:00:04.4]} 60. Kf5 {[%clk 0:01:13.5]} 60... Rb1 {[%clk 0:00:03.8]} 61.
Re6 {[%clk 0:01:14.1]} 61... Rb5+ {[%clk 0:00:03.6]} 62. Re5 {[%clk 0:01:14.6]}
62... Rb7 {[%clk 0:00:04.4]} 63. Rd5 {[%clk 0:01:15]} 63... Rc7 {[%clk
0:00:04.8]} 64. Kg4 {[%clk 0:01:15.2]} 64... Rb7 {[%clk 0:00:05.5]} 65. Kh5
{[%clk 0:01:15.3]} 65... Rc7 {[%clk 0:00:06.2]} 66. f5 {[%clk 0:01:15.6]} 66...
Rb7 {[%clk 0:00:07]} 67. Re5 {[%clk 0:01:14.9]} 67... Kf7 {[%clk 0:00:03]} 68.
f6 {[%clk 0:01:09.9]} 68... Rb8 {[%clk 0:00:02.4]} 69. Re7+ {[%clk 0:01:09.8]}
69... Kg8 {[%clk 0:00:03]} 70. Kg6 {[%clk 0:01:09.9]} 70... Rd8 {[%clk
0:00:01.5]} 71. Rg7+ {[%clk 0:01:10]} 71... Kf8 {[%clk 0:00:01.8]} 72. Rh7
{[%clk 0:01:10.6]} 72... Kg8 {[%clk 0:00:01.4]} 73. f7+ {[%clk 0:01:11]} 73...
Kf8 {[%clk 0:00:02.3]} 74. Rh8+ {[%clk 0:01:11.9]} 74... Ke7 {[%clk 0:00:02.9]}
75. Rxd8 {[%clk 0:01:12.8]} 75... Kxd8 {[%clk 0:00:03.8]} 76. f8=Q+ {[%clk
0:01:13.3]} 76... Kd7 {[%clk 0:00:04.4]} 77. Qf2 {[%clk 0:01:13.8]} 77... Ke6
{[%clk 0:00:05.3]} 1-0

[Event "Early-Titled-Tuesday-Blitz-May-14-2024"]
[Site "Chess.com"]
[Date "2024.05.14"]
[Round "9"]
[White "MiguelBestard1981"]
[Black "Slovineanu"]
[Result "1-0"]
[WhiteElo "2349"]
[BlackElo "2472"]
[TimeControl "180+1"]
[EndTime "9:47:43 PDT"]
[Termination "MiguelBestard1981 won by checkmate"]

1. d4 {[%clk 0:03:00]} 1... Nf6 {[%clk 0:02:59.2]} 2. Bf4 {[%clk 0:02:59.3]}
2... d5 {[%clk 0:02:58.7]} 3. e3 {[%clk 0:02:58.2]} 3... e6 {[%clk 0:02:58.9]}
4. Nd2 {[%clk 0:02:53.8]} 4... c5 {[%clk 0:02:58.7]} 5. c3 {[%clk 0:02:53.7]}
5... Bd6 {[%clk 0:02:58.4]} 6. Bxd6 {[%clk 0:02:53.1]} 6... Qxd6 {[%clk
0:02:58.1]} 7. Bd3 {[%clk 0:02:53.7]} 7... Nc6 {[%clk 0:02:51.9]} 8. f4 {[%clk
0:02:53.5]} 8... b6 {[%clk 0:02:49.4]} 9. Ngf3 {[%clk 0:02:35.4]} 9... Bb7
{[%clk 0:02:49.1]} 10. Ne5 {[%clk 0:02:35.7]} 10... O-O {[%clk 0:02:48.4]} 11.
O-O {[%clk 0:02:32.7]} 11... Ne7 {[%clk 0:02:45.5]} 12. Ndf3 {[%clk 0:02:29.8]}
12... Ne4 {[%clk 0:02:38.3]} 13. Qe1 {[%clk 0:02:22.1]} 13... Rac8 {[%clk
0:02:22.9]} 14. Qh4 {[%clk 0:02:18.2]} 14... Nf5 {[%clk 0:02:18.6]} 15. Qh3
{[%clk 0:02:13.7]} 15... f6 {[%clk 0:02:02.3]} 16. Ng4 {[%clk 0:01:57.2]} 16...
Rc7 {[%clk 0:01:36.5]} 17. Rae1 {[%clk 0:01:55.3]} 17... b5 {[%clk 0:01:31.2]}
18. Nf2 {[%clk 0:01:53.5]} 18... b4 {[%clk 0:01:29.3]} 19. g4 {[%clk 0:01:52.4]}
19... Ne7 {[%clk 0:01:20.4]} 20. g5 {[%clk 0:01:30.9]} 20... f5 {[%clk
0:01:19.4]} 21. Ne5 {[%clk 0:01:25.8]} 21... bxc3 {[%clk 0:01:14.2]} 22. bxc3
{[%clk 0:01:22.7]} 22... Nxc3 {[%clk 0:01:09.8]} 23. Nfg4 {[%clk 0:01:21.3]}
23... Ne4 {[%clk 0:01:03.4]} 24. Nh6+ {[%clk 0:01:19.7]} 24... gxh6 {[%clk
0:00:59.3]} 25. Qxh6 {[%clk 0:01:19.9]} 25... Ng6 {[%clk 0:00:49.8]} 26. Nxg6
{[%clk 0:01:11.4]} 26... hxg6 {[%clk 0:00:49.5]} 27. Qxg6+ {[%clk 0:01:12.3]}
27... Rg7 {[%clk 0:00:49.2]} 28. Qh6 {[%clk 0:01:10.1]} 28... cxd4 {[%clk
0:00:49]} 29. exd4 {[%clk 0:01:09.6]} 29... Qb6 {[%clk 0:00:47.2]} 30. Rf3
{[%clk 0:00:59.8]} 30... Qxd4+ {[%clk 0:00:21.8]} 31. Kg2 {[%clk 0:00:59.2]}
31... Qb6 {[%clk 0:00:09.4]} 32. Rh3 {[%clk 0:00:57.9]} 32... Kf7 {[%clk
0:00:07]} 33. Qh5+ {[%clk 0:00:49]} 33... Ke7 {[%clk 0:00:06.3]} 34. Rb1 {[%clk
0:00:38.9]} 34... Qc6 {[%clk 0:00:06.1]} 35. Qh6 {[%clk 0:00:33.8]} 35... Rgf7
{[%clk 0:00:04.5]} 36. g6 {[%clk 0:00:32.4]} 36... Nc3 {[%clk 0:00:02.3]} 37.
Rxb7+ {[%clk 0:00:25.8]} 37... Qxb7 {[%clk 0:00:01.5]} 38. gxf7 {[%clk
0:00:23.9]} 38... d4+ {[%clk 0:00:01.5]} 39. Kg3 {[%clk 0:00:22.6]} 39... Rxf7
{[%clk 0:00:01.7]} 40. Qg5+ {[%clk 0:00:21.1]} 40... Kd6 {[%clk 0:00:01.9]} 41.
Qd8+ {[%clk 0:00:20]} 41... Rd7 {[%clk 0:00:01.1]} 42. Qf8+ {[%clk 0:00:16.6]}
42... Kd5 {[%clk 0:00:01]} 43. Qa3 {[%clk 0:00:12.5]} 43... Ne4+ {[%clk
0:00:01.4]} 44. Bxe4+ {[%clk 0:00:12.1]} 44... Kxe4 {[%clk 0:00:01.5]} 45. Qf3#
{[%clk 0:00:10.8]} 1-0